[Event "Titled Tuesday Blitz August 15 Early 2023"]
[White "slidingknight2775"]
[Black "Azhar, Puteri Munajjah Az-Zahraa"]
[BlackFideId "5709040"]
[WhiteElo "2458"]
[BlackElo "2160"]
[Result "1/2-1/2"]
[Round "4"]
[TimeControl "180+1"]
[Date "2023.08.15"]
[WhiteClock "0:00:05"]
[BlackClock "0:00:03"]
[Board "188"]

1. d4 {[%clk 0:03:00]}  Nf6 {[%clk 0:02:57]} 2. Nf3 {[%clk 0:03:01]}  d6 {[%clk 0:02:57]} 3. g3 {[%clk 0:03:00]}  g6 {[%clk 0:02:57]} 4. Bg2 {[%clk 0:03:01]}  Bg7 {[%clk 0:02:58]} 5. O-O {[%clk 0:03:02]}  O-O {[%clk 0:02:59]} 6. a4 {[%clk 0:03:02]}  Nbd7 {[%clk 0:02:59]} 7. a5 {[%clk 0:03:02]}  c6 {[%clk 0:02:59]} 8. c4 {[%clk 0:02:59]}  Qc7 {[%clk 0:02:59]} 9. Nc3 {[%clk 0:02:56]}  e5 {[%clk 0:02:59]} 10. h3 {[%clk 0:02:43]}  Re8 {[%clk 0:02:58]} 11. dxe5 {[%clk 0:02:42]}  Nxe5 {[%clk 0:02:57]} 12. Nxe5 {[%clk 0:02:42]}  dxe5 {[%clk 0:02:57]} 13. Be3 {[%clk 0:02:41]}  Be6 {[%clk 0:02:57]} 14. Qa4 {[%clk 0:02:40]}  Nd7 {[%clk 0:02:40]} 15. Rac1 {[%clk 0:02:35]}  f5 {[%clk 0:02:40]} 16. Nd5 {[%clk 0:02:17]}  Qd6 {[%clk 0:02:26]} 17. Nc3 {[%clk 0:01:59]}  Nc5 {[%clk 0:02:05]} 18. Qa3 {[%clk 0:01:58]}  Bf8 {[%clk 0:02:03]} 19. Rfd1 {[%clk 0:01:57]}  Qe7 {[%clk 0:02:03]} 20. Nd5 {[%clk 0:01:55]}  cxd5 {[%clk 0:01:35]} 21. cxd5 {[%clk 0:01:56]}  Ne4 {[%clk 0:01:28]} 22. Qxe7 {[%clk 0:01:51]}  Rxe7 {[%clk 0:01:27]} 23. dxe6 {[%clk 0:01:51]}  Rxe6 {[%clk 0:01:26]} 24. Bxe4 {[%clk 0:01:47]}  fxe4 {[%clk 0:01:26]} 25. Rd7 {[%clk 0:01:45]}  b6 {[%clk 0:01:22]} 26. Rc4 {[%clk 0:01:29]}  Rd6 {[%clk 0:01:06]} 27. Rxd6 {[%clk 0:01:27]}  Bxd6 {[%clk 0:01:07]} 28. axb6 {[%clk 0:01:26]}  axb6 {[%clk 0:01:06]} 29. Bxb6 {[%clk 0:01:22]}  Ra1+ {[%clk 0:01:03]} 30. Kg2 {[%clk 0:01:22]}  Rb1 {[%clk 0:01:03]} 31. Rxe4 {[%clk 0:00:55]}  Rxb2 {[%clk 0:01:02]} 32. Ba5 {[%clk 0:00:56]}  Kf7 {[%clk 0:01:01]} 33. Bc3 {[%clk 0:00:56]}  Rb5 {[%clk 0:00:59]} 34. h4 {[%clk 0:00:55]}  Ke6 {[%clk 0:00:51]} 35. g4 {[%clk 0:00:48]}  h5 {[%clk 0:00:50]} 36. gxh5 {[%clk 0:00:44]}  gxh5 {[%clk 0:00:51]} 37. Bd2 {[%clk 0:00:34]}  Kf5 {[%clk 0:00:47]} 38. f3 {[%clk 0:00:31]}  Rb2 {[%clk 0:00:43]} 39. Bg5 {[%clk 0:00:29]}  Rc2 {[%clk 0:00:42]} 40. Kf2 {[%clk 0:00:24]}  Bc5+ {[%clk 0:00:41]} 41. Be3 {[%clk 0:00:24]}  Be7 {[%clk 0:00:40]} 42. Ra4 {[%clk 0:00:22]}  Rc6 {[%clk 0:00:34]} 43. Ra5 {[%clk 0:00:17]}  Bxh4+ {[%clk 0:00:33]} 44. Kg2 {[%clk 0:00:18]}  Bf6 {[%clk 0:00:29]} 45. Bf2 {[%clk 0:00:16]}  Rc2 {[%clk 0:00:26]} 46. Kf1 {[%clk 0:00:16]}  Rc1+ {[%clk 0:00:26]} 47. Kg2 {[%clk 0:00:16]}  Rc2 {[%clk 0:00:26]} 48. e4+ {[%clk 0:00:17]}  Kf4 {[%clk 0:00:18]} 49. Ra8 {[%clk 0:00:09]}  Bh4 {[%clk 0:00:13]} 50. Rf8+ {[%clk 0:00:09]}  Kg5 {[%clk 0:00:13]} 51. Rf5+ {[%clk 0:00:05]}  Kg6 {[%clk 0:00:12]} 52. Rxe5 {[%clk 0:00:05]}  Bxf2 {[%clk 0:00:11]} 53. Kh3 {[%clk 0:00:04]}  Bd4 {[%clk 0:00:09]} 54. Rd5 {[%clk 0:00:04]}  Be3 {[%clk 0:00:08]} 55. Rf5 {[%clk 0:00:04]}  Bg1 {[%clk 0:00:06]} 56. Rf8 {[%clk 0:00:03]}  Rh2+ {[%clk 0:00:05]} 57. Kg3 {[%clk 0:00:04]}  Re2 {[%clk 0:00:05]} 58. Kh3 {[%clk 0:00:03]}  Be3 {[%clk 0:00:04]} 59. Rg8+ {[%clk 0:00:03]}  Kf7 {[%clk 0:00:03]} 60. Rh8 {[%clk 0:00:03]}  Kg6 {[%clk 0:00:02]} 61. Rg8+ {[%clk 0:00:04]}  Kf7 {[%clk 0:00:03]} 62. Rh8 {[%clk 0:00:04]}  Kg6 {[%clk 0:00:03]} 63. Rg8+ {[%clk 0:00:05]} 1/2-1/2


[Site "https://www.chess.com"]

[Event "Titled Tuesday Blitz August 15 Early 2023"]
[White "Womacka, Mathias"]
[Black "Sava, Christiansen-Danut-Eugen"]
[WhiteFideId "4611390"]
[BlackFideId "1210114"]
[WhiteElo "2452"]
[BlackElo "2127"]
[Result "1-0"]
[Round "4"]
[TimeControl "180+1"]
[Date "2023.08.15"]
[WhiteClock "0:00:09"]
[BlackClock "0:00:14"]
[Board "191"]

1. e4 {[%clk 0:03:00]}  e6 {[%clk 0:02:56]} 2. d4 {[%clk 0:02:59]}  d5 {[%clk 0:02:57]} 3. Nd2 {[%clk 0:02:59]}  c5 {[%clk 0:02:52]} 4. exd5 {[%clk 0:02:58]}  exd5 {[%clk 0:02:52]} 5. Ngf3 {[%clk 0:02:57]}  Nc6 {[%clk 0:02:52]} 6. Bb5 {[%clk 0:02:56]}  Bd6 {[%clk 0:02:49]} 7. dxc5 {[%clk 0:02:55]}  Bxc5 {[%clk 0:02:49]} 8. O-O {[%clk 0:02:56]}  Ne7 {[%clk 0:02:49]} 9. Nb3 {[%clk 0:02:56]}  Bb6 {[%clk 0:02:49]} 10. Re1 {[%clk 0:02:56]}  O-O {[%clk 0:02:49]} 11. Be3 {[%clk 0:02:55]}  Bc7 {[%clk 0:02:40]} 12. Bc5 {[%clk 0:02:40]}  Bd6 {[%clk 0:02:39]} 13. Bxd6 {[%clk 0:02:26]}  Qxd6 {[%clk 0:02:35]} 14. h3 {[%clk 0:02:26]}  a6 {[%clk 0:02:17]} 15. Bd3 {[%clk 0:02:25]}  f6 {[%clk 0:01:53]} 16. c3 {[%clk 0:02:08]}  Ne5 {[%clk 0:01:52]} 17. Nbd4 {[%clk 0:01:58]}  Bd7 {[%clk 0:01:48]} 18. Qe2 {[%clk 0:01:51]}  Nxf3+ {[%clk 0:01:41]} 19. Qxf3 {[%clk 0:01:44]}  Nc6 {[%clk 0:01:42]} 20. Nf5 {[%clk 0:01:33]}  Bxf5 {[%clk 0:01:30]} 21. Qxf5 {[%clk 0:01:34]}  g6 {[%clk 0:01:30]} 22. Qe6+ {[%clk 0:01:33]}  Qxe6 {[%clk 0:01:30]} 23. Rxe6 {[%clk 0:01:34]}  Ne5 {[%clk 0:01:31]} 24. Bc2 {[%clk 0:01:27]}  Kf7 {[%clk 0:01:29]} 25. Rb6 {[%clk 0:01:27]}  Rab8 {[%clk 0:01:25]} 26. Bb3 {[%clk 0:01:26]}  Rfd8 {[%clk 0:01:22]} 27. Rd1 {[%clk 0:01:26]}  Ke7 {[%clk 0:00:50]} 28. Rxd5 {[%clk 0:01:20]}  Nd7 {[%clk 0:00:50]} 29. Rbd6 {[%clk 0:01:18]}  Ne5 {[%clk 0:00:47]} 30. Rxd8 {[%clk 0:01:15]}  Rxd8 {[%clk 0:00:48]} 31. Rxd8 {[%clk 0:01:13]}  Kxd8 {[%clk 0:00:49]} 32. Bd5 {[%clk 0:01:05]}  b6 {[%clk 0:00:48]} 33. b3 {[%clk 0:00:57]}  a5 {[%clk 0:00:47]} 34. Kf1 {[%clk 0:00:57]}  Kc7 {[%clk 0:00:47]} 35. Ke2 {[%clk 0:00:57]}  Kd6 {[%clk 0:00:45]} 36. Bg8 {[%clk 0:00:56]}  h6 {[%clk 0:00:44]} 37. Ke3 {[%clk 0:00:55]}  Nd7 {[%clk 0:00:23]} 38. Kd4 {[%clk 0:00:48]}  Ne5 {[%clk 0:00:20]} 39. Bd5 {[%clk 0:00:39]}  Nd7 {[%clk 0:00:17]} 40. b4 {[%clk 0:00:25]}  Ne5 {[%clk 0:00:13]} 41. f4 {[%clk 0:00:22]}  Nd7 {[%clk 0:00:13]} 42. h4 {[%clk 0:00:20]}  g5 {[%clk 0:00:11]} 43. hxg5 {[%clk 0:00:18]}  hxg5 {[%clk 0:00:12]} 44. fxg5 {[%clk 0:00:18]}  fxg5 {[%clk 0:00:13]} 45. Bf3 {[%clk 0:00:17]}  Nf6 {[%clk 0:00:13]} 46. Kc4 {[%clk 0:00:17]}  g4 {[%clk 0:00:10]} 47. Ba8 {[%clk 0:00:15]}  Nd7 {[%clk 0:00:07]} 48. Kb5 {[%clk 0:00:14]}  a4 {[%clk 0:00:07]} 49. Kxa4 {[%clk 0:00:14]}  Kc7 {[%clk 0:00:06]} 50. Kb5 {[%clk 0:00:14]}  Ne5 {[%clk 0:00:05]} 51. Be4 {[%clk 0:00:13]}  g3 {[%clk 0:00:05]} 52. a4 {[%clk 0:00:12]}  Ng4 {[%clk 0:00:05]} 53. a5 {[%clk 0:00:12]}  bxa5 {[%clk 0:00:06]} 54. Kxa5 {[%clk 0:00:12]}  Ne5 {[%clk 0:00:05]} 55. Kb5 {[%clk 0:00:12]}  Nd7 {[%clk 0:00:04]} 56. Kc4 {[%clk 0:00:11]}  Nf6 {[%clk 0:00:02]} 57. Bf3 {[%clk 0:00:10]}  Kd6 {[%clk 0:00:03]} 58. Kd4 {[%clk 0:00:11]}  Nd7 {[%clk 0:00:03]} 59. c4 {[%clk 0:00:10]}  Kc7 {[%clk 0:00:03]} 60. c5 {[%clk 0:00:10]}  Nf6 {[%clk 0:00:03]} 61. Ke3 {[%clk 0:00:10]}  Nd7 {[%clk 0:00:02]} 62. Kf4 {[%clk 0:00:10]}  Nf6 {[%clk 0:00:02]} 63. Kxg3 {[%clk 0:00:10]}  Nh5+ {[%clk 0:00:03]} 64. Bxh5 {[%clk 0:00:09]}  Kc6 {[%clk 0:00:03]} 65. Bf3+ {[%clk 0:00:09]}  Kb5 {[%clk 0:00:04]} 66. Kf4 {[%clk 0:00:10]}  Ka4 {[%clk 0:00:05]} 67. g4 {[%clk 0:00:10]}  Ka3 {[%clk 0:00:06]} 68. g5 {[%clk 0:00:11]}  Ka2 {[%clk 0:00:07]} 69. g6 {[%clk 0:00:11]}  Ka1 {[%clk 0:00:08]} 70. g7 {[%clk 0:00:12]}  Kb1 {[%clk 0:00:09]} 71. g8=Q {[%clk 0:00:12]}  Ka1 {[%clk 0:00:10]} 72. Qc4 {[%clk 0:00:12]}  Kb1 {[%clk 0:00:11]} 73. b5 {[%clk 0:00:10]}  Ka1 {[%clk 0:00:11]} 74. Qe2 {[%clk 0:00:10]}  Kb1 {[%clk 0:00:12]} 75. c6 {[%clk 0:00:10]}  Ka1 {[%clk 0:00:12]} 76. c7 {[%clk 0:00:11]}  Kb1 {[%clk 0:00:13]} 77. Bd5 {[%clk 0:00:10]}  Ka1 {[%clk 0:00:14]} 78. Qa2# {[%clk 0:00:09]} 1-0


[Site "https://www.chess.com"]

[Event "Titled Tuesday Blitz August 15 Early 2023"]
[White "Daurelle, Herve"]
[Black "Mrudul Dehankar"]
[WhiteFideId "602655"]
[BlackFideId "25096990"]
[WhiteElo "2125"]
[BlackElo "2450"]
[Result "0-1"]
[Round "4"]
[TimeControl "180+1"]
[Date "2023.08.15"]
[WhiteClock "0:00:00"]
[BlackClock "0:00:07"]
[Board "192"]

1. e4 {[%clk 0:03:00]}  c6 {[%clk 0:02:59]} 2. c4 {[%clk 0:02:59]}  d5 {[%clk 0:02:59]} 3. exd5 {[%clk 0:02:59]}  cxd5 {[%clk 0:02:59]} 4. cxd5 {[%clk 0:02:59]}  Nf6 {[%clk 0:02:59]} 5. Nc3 {[%clk 0:03:00]}  g6 {[%clk 0:02:52]} 6. Bc4 {[%clk 0:02:58]}  Nbd7 {[%clk 0:02:51]} 7. d3 {[%clk 0:02:56]}  Nb6 {[%clk 0:02:51]} 8. Qb3 {[%clk 0:02:56]}  Bg7 {[%clk 0:02:43]} 9. Nge2 {[%clk 0:02:52]}  O-O {[%clk 0:02:42]} 10. O-O {[%clk 0:02:52]}  Bd7 {[%clk 0:02:26]} 11. Re1 {[%clk 0:02:46]}  Rc8 {[%clk 0:02:25]} 12. Nf4 {[%clk 0:02:45]}  Bf5 {[%clk 0:02:07]} 13. Be3 {[%clk 0:02:39]}  Nxc4 {[%clk 0:01:50]} 14. dxc4 {[%clk 0:02:38]}  Qc7 {[%clk 0:01:51]} 15. c5 {[%clk 0:02:12]}  Ng4 {[%clk 0:01:16]} 16. d6 {[%clk 0:01:43]}  exd6 {[%clk 0:01:13]} 17. cxd6 {[%clk 0:01:44]}  Qxd6 {[%clk 0:01:09]} 18. Rad1 {[%clk 0:01:44]}  Qf6 {[%clk 0:00:38]} 19. Nfd5 {[%clk 0:01:34]}  Qh4 {[%clk 0:00:33]} 20. h3 {[%clk 0:01:28]}  Nxe3 {[%clk 0:00:30]} 21. Rxe3 {[%clk 0:01:21]}  Be6 {[%clk 0:00:23]} 22. Qxb7 {[%clk 0:01:08]}  Rb8 {[%clk 0:00:22]} 23. Qxa7 {[%clk 0:00:46]}  Rxb2 {[%clk 0:00:22]} 24. Re4 {[%clk 0:00:15]}  Qg5 {[%clk 0:00:15]} 25. Qe7 {[%clk 0:00:10]}  Qh5 {[%clk 0:00:12]} 26. Qh4 {[%clk 0:00:06]}  Qxh4 {[%clk 0:00:07]} 27. Rxh4 {[%clk 0:00:00]}  h5 {[%clk 0:00:07]} 0-1


[Site "https://www.chess.com"]

[Event "Titled Tuesday Blitz August 15 Early 2023"]
[White "Pesotskiy, Mikhail"]
[Black "Larina, Maria"]
[WhiteFideId "34164453"]
[BlackFideId "24113182"]
[WhiteElo "2449"]
[BlackElo "2116"]
[Result "1-0"]
[Round "4"]
[TimeControl "180+1"]
[Date "2023.08.15"]
[WhiteClock "0:00:45"]
[BlackClock "0:00:00"]
[Board "193"]

1. d4 {[%clk 0:03:00]}  f5 {[%clk 0:02:59]} 2. Bg5 {[%clk 0:02:57]}  g6 {[%clk 0:02:56]} 3. h4 {[%clk 0:02:56]}  h6 {[%clk 0:02:55]} 4. Bf4 {[%clk 0:02:54]}  Nf6 {[%clk 0:02:53]} 5. c4 {[%clk 0:02:51]}  d6 {[%clk 0:02:51]} 6. Nc3 {[%clk 0:02:51]}  e6 {[%clk 0:02:48]} 7. Nf3 {[%clk 0:02:42]}  Bg7 {[%clk 0:02:44]} 8. e3 {[%clk 0:02:40]}  Qe7 {[%clk 0:02:38]} 9. Bd3 {[%clk 0:02:32]}  Nc6 {[%clk 0:02:35]} 10. d5 {[%clk 0:02:28]}  Nd8 {[%clk 0:02:26]} 11. dxe6 {[%clk 0:02:15]}  Nxe6 {[%clk 0:02:21]} 12. Bh2 {[%clk 0:02:13]}  Nc5 {[%clk 0:02:14]} 13. Bc2 {[%clk 0:02:10]}  O-O {[%clk 0:01:58]} 14. Qe2 {[%clk 0:02:04]}  Be6 {[%clk 0:01:46]} 15. Nd4 {[%clk 0:02:04]}  Ng4 {[%clk 0:01:19]} 16. Nxe6 {[%clk 0:02:00]}  Qxe6 {[%clk 0:01:09]} 17. Bf4 {[%clk 0:01:49]}  c6 {[%clk 0:00:58]} 18. O-O-O {[%clk 0:01:42]}  Ne5 {[%clk 0:00:54]} 19. Rd4 {[%clk 0:01:38]}  a5 {[%clk 0:00:47]} 20. Rhd1 {[%clk 0:01:33]}  Rfd8 {[%clk 0:00:47]} 21. h5 {[%clk 0:01:25]}  g5 {[%clk 0:00:46]} 22. Bh2 {[%clk 0:01:25]}  Nf7 {[%clk 0:00:44]} 23. R4d2 {[%clk 0:01:24]}  Bxc3 {[%clk 0:00:39]} 24. bxc3 {[%clk 0:01:25]}  Ne5 {[%clk 0:00:34]} 25. Rd4 {[%clk 0:01:21]}  a4 {[%clk 0:00:17]} 26. Bxe5 {[%clk 0:00:49]}  Qxe5 {[%clk 0:00:16]} 27. Qf3 {[%clk 0:00:50]}  Rf8 {[%clk 0:00:08]} 28. Rxd6 {[%clk 0:00:50]}  Qxc3 {[%clk 0:00:08]} 29. Rg6+ {[%clk 0:00:50]}  Kh7 {[%clk 0:00:05]} 30. Qg3 {[%clk 0:00:46]}  Rfd8 {[%clk 0:00:00]} 31. Qc7+ {[%clk 0:00:45]} 1-0


[Site "https://www.chess.com"]

[Event "Titled Tuesday Blitz August 15 Early 2023"]
[White "Rosenberg, Evan S"]
[Black "Souza Neves, Andrey M."]
[WhiteFideId "2019299"]
[BlackFideId "2101815"]
[WhiteElo "2446"]
[BlackElo "2103"]
[Result "1-0"]
[Round "4"]
[TimeControl "180+1"]
[Date "2023.08.15"]
[WhiteClock "0:00:03"]
[BlackClock "0:00:00"]
[Board "194"]

1. d4 {[%clk 0:03:00]}  d5 {[%clk 0:02:59]} 2. Nf3 {[%clk 0:03:01]}  Nf6 {[%clk 0:02:58]} 3. Bg5 {[%clk 0:03:01]}  Ne4 {[%clk 0:02:58]} 4. Bh4 {[%clk 0:03:01]}  c5 {[%clk 0:02:57]} 5. e3 {[%clk 0:03:00]}  Qb6 {[%clk 0:02:56]} 6. Nc3 {[%clk 0:03:00]}  Nxc3 {[%clk 0:02:48]} 7. bxc3 {[%clk 0:03:00]}  Nc6 {[%clk 0:02:47]} 8. Be2 {[%clk 0:02:59]}  e6 {[%clk 0:02:40]} 9. O-O {[%clk 0:02:57]}  Be7 {[%clk 0:02:39]} 10. Bxe7 {[%clk 0:02:56]}  Nxe7 {[%clk 0:02:38]} 11. Rb1 {[%clk 0:02:57]}  Qc7 {[%clk 0:02:36]} 12. dxc5 {[%clk 0:02:57]}  O-O {[%clk 0:02:31]} 13. Qd4 {[%clk 0:02:49]}  Nf5 {[%clk 0:02:27]} 14. Qb4 {[%clk 0:02:45]}  Rb8 {[%clk 0:02:20]} 15. Bd3 {[%clk 0:02:32]}  Ne7 {[%clk 0:02:13]} 16. c4 {[%clk 0:02:00]}  dxc4 {[%clk 0:02:04]} 17. Qxc4 {[%clk 0:01:56]}  Nd5 {[%clk 0:02:00]} 18. Nd4 {[%clk 0:01:47]}  Bd7 {[%clk 0:01:53]} 19. Nb5 {[%clk 0:01:42]}  Bxb5 {[%clk 0:01:50]} 20. Rxb5 {[%clk 0:01:42]}  Rfc8 {[%clk 0:01:44]} 21. Rfb1 {[%clk 0:01:42]}  a6 {[%clk 0:01:40]} 22. R5b3 {[%clk 0:01:27]}  b5 {[%clk 0:01:36]} 23. Qh4 {[%clk 0:01:16]}  g6 {[%clk 0:01:25]} 24. a4 {[%clk 0:00:42]}  Qxc5 {[%clk 0:01:20]} 25. axb5 {[%clk 0:00:43]}  axb5 {[%clk 0:01:17]} 26. h3 {[%clk 0:00:42]}  b4 {[%clk 0:01:13]} 27. Ra1 {[%clk 0:00:33]}  Ra8 {[%clk 0:01:06]} 28. Rxa8 {[%clk 0:00:24]}  Rxa8 {[%clk 0:01:05]} 29. Be4 {[%clk 0:00:23]}  Ra1+ {[%clk 0:01:01]} 30. Kh2 {[%clk 0:00:23]}  Kg7 {[%clk 0:00:54]} 31. Bxd5 {[%clk 0:00:22]}  Qxd5 {[%clk 0:00:49]} 32. Qxb4 {[%clk 0:00:20]}  Qe5+ {[%clk 0:00:45]} 33. f4 {[%clk 0:00:17]}  Qf6 {[%clk 0:00:37]} 34. Qc3 {[%clk 0:00:15]}  Qxc3 {[%clk 0:00:26]} 35. Rxc3 {[%clk 0:00:16]}  Kf6 {[%clk 0:00:23]} 36. e4 {[%clk 0:00:15]}  Re1 {[%clk 0:00:20]} 37. e5+ {[%clk 0:00:16]}  Kf5 {[%clk 0:00:17]} 38. Kg3 {[%clk 0:00:15]}  Rf1 {[%clk 0:00:15]} 39. Rc7 {[%clk 0:00:12]}  f6 {[%clk 0:00:08]} 40. Rf7 {[%clk 0:00:11]}  Ke4 {[%clk 0:00:06]} 41. Rxf6 {[%clk 0:00:10]}  Rc1 {[%clk 0:00:04]} 42. Rxe6 {[%clk 0:00:07]}  Rxc2 {[%clk 0:00:05]} 43. Rf6 {[%clk 0:00:06]}  Rc3+ {[%clk 0:00:04]} 44. Kh2 {[%clk 0:00:06]}  Rc2 {[%clk 0:00:04]} 45. e6 {[%clk 0:00:06]}  Rc8 {[%clk 0:00:03]} 46. e7 {[%clk 0:00:05]}  Re8 {[%clk 0:00:03]} 47. Rf7 {[%clk 0:00:05]}  h5 {[%clk 0:00:03]} 48. Kg3 {[%clk 0:00:05]}  Kd5 {[%clk 0:00:03]} 49. Kh4 {[%clk 0:00:04]}  Ke6 {[%clk 0:00:03]} 50. Rh7 {[%clk 0:00:03]}  Rg8 {[%clk 0:00:02]} 51. Kg5 {[%clk 0:00:03]}  Kd7 {[%clk 0:00:02]} 52. h4 {[%clk 0:00:02]}  Ke8 {[%clk 0:00:02]} 53. Kf6 {[%clk 0:00:02]}  Kd7 {[%clk 0:00:01]} 54. Rf7 {[%clk 0:00:02]}  Re8 {[%clk 0:00:02]} 55. Kxg6 {[%clk 0:00:02]}  Kd6 {[%clk 0:00:01]} 56. Kf6 {[%clk 0:00:01]}  Rg8 {[%clk 0:00:01]} 57. Rf8 {[%clk 0:00:02]}  Rxg2 {[%clk 0:00:02]} 58. e8=Q {[%clk 0:00:02]}  Rf2 {[%clk 0:00:03]} 59. Qe6+ {[%clk 0:00:02]}  Kc5 {[%clk 0:00:02]} 60. f5 {[%clk 0:00:03]}  Kd4 {[%clk 0:00:00]} 61. Rd8+ {[%clk 0:00:03]} 1-0


[Site "https://www.chess.com"]

[Event "Titled Tuesday Blitz August 15 Early 2023"]
[White "Osiecki, Stanislaw"]
[Black "Bobkov, Vadim"]
[WhiteFideId "1102990"]
[BlackFideId "34110876"]
[WhiteElo "2048"]
[BlackElo "2443"]
[Result "0-1"]
[Round "4"]
[TimeControl "180+1"]
[Date "2023.08.15"]
[WhiteClock "0:00:03"]
[BlackClock "0:00:04"]
[Board "196"]

1. e4 {[%clk 0:02:59]}  c5 {[%clk 0:02:34]} 2. c3 {[%clk 0:02:57]}  g6 {[%clk 0:02:27]} 3. d4 {[%clk 0:02:57]}  cxd4 {[%clk 0:02:27]} 4. cxd4 {[%clk 0:02:57]}  d5 {[%clk 0:02:27]} 5. exd5 {[%clk 0:02:56]}  Nf6 {[%clk 0:02:25]} 6. Nc3 {[%clk 0:02:56]}  Bg7 {[%clk 0:02:19]} 7. Nf3 {[%clk 0:02:56]}  O-O {[%clk 0:02:19]} 8. Be2 {[%clk 0:02:53]}  Nxd5 {[%clk 0:02:19]} 9. Nxd5 {[%clk 0:02:52]}  Qxd5 {[%clk 0:02:19]} 10. O-O {[%clk 0:02:52]}  Nc6 {[%clk 0:02:19]} 11. Be3 {[%clk 0:02:52]}  Rd8 {[%clk 0:02:18]} 12. h3 {[%clk 0:02:51]}  Nxd4 {[%clk 0:02:08]} 13. Nxd4 {[%clk 0:02:50]}  Bxd4 {[%clk 0:02:09]} 14. Bxd4 {[%clk 0:02:43]}  Qxd4 {[%clk 0:02:10]} 15. Qb3 {[%clk 0:02:42]}  Be6 {[%clk 0:02:04]} 16. Qxb7 {[%clk 0:02:38]}  Rab8 {[%clk 0:02:04]} 17. Qxe7 {[%clk 0:02:28]}  Re8 {[%clk 0:01:59]} 18. Qc7 {[%clk 0:02:14]}  Rxb2 {[%clk 0:01:52]} 19. Bf3 {[%clk 0:01:31]}  Rxf2 {[%clk 0:01:51]} 20. Rxf2 {[%clk 0:01:31]}  Qxa1+ {[%clk 0:01:51]} 21. Kh2 {[%clk 0:01:31]}  Qd4 {[%clk 0:01:29]} 22. Re2 {[%clk 0:01:20]}  Rc8 {[%clk 0:01:27]} 23. Qg3 {[%clk 0:01:03]}  Rc1 {[%clk 0:01:26]} 24. Qf2 {[%clk 0:01:01]}  Qa1 {[%clk 0:00:45]} 25. g3 {[%clk 0:00:41]}  Rf1 {[%clk 0:00:45]} 26. Qe3 {[%clk 0:00:35]}  h5 {[%clk 0:00:35]} 27. Bg2 {[%clk 0:00:31]}  Rd1 {[%clk 0:00:23]} 28. Qxa7 {[%clk 0:00:30]}  h4 {[%clk 0:00:23]} 29. Qf2 {[%clk 0:00:25]}  hxg3+ {[%clk 0:00:22]} 30. Qxg3 {[%clk 0:00:26]}  Bxa2 {[%clk 0:00:15]} 31. Qb8+ {[%clk 0:00:25]}  Kg7 {[%clk 0:00:14]} 32. Qe8 {[%clk 0:00:20]}  Bc4 {[%clk 0:00:08]} 33. Rf2 {[%clk 0:00:16]}  Qd4 {[%clk 0:00:06]} 34. Qe7 {[%clk 0:00:09]}  Qxf2 {[%clk 0:00:05]} 35. Qe5+ {[%clk 0:00:09]}  Kh7 {[%clk 0:00:05]} 36. Qg5 {[%clk 0:00:06]}  Qg1+ {[%clk 0:00:04]} 37. Kg3 {[%clk 0:00:05]}  Rd3+ {[%clk 0:00:04]} 38. Kh4 {[%clk 0:00:04]}  Qe1+ {[%clk 0:00:04]} 39. Kg4 {[%clk 0:00:03]}  Rg3+ {[%clk 0:00:04]} 40. Kf4 {[%clk 0:00:03]}  Qe3# {[%clk 0:00:04]} 0-1


[Site "https://www.chess.com"]

[Event "Titled Tuesday Blitz August 15 Early 2023"]
[White "Yeritsyan, Hayk"]
[Black "Vargas, Mauricio"]
[WhiteFideId "13307320"]
[BlackFideId "4404572"]
[WhiteElo "2432"]
[BlackElo "1885"]
[Result "1-0"]
[Round "4"]
[TimeControl "180+1"]
[Date "2023.08.15"]
[WhiteClock "0:02:25"]
[BlackClock "0:00:00"]
[Board "198"]

1. d4 {[%clk 0:03:00]}  Nf6 {[%clk 0:01:42]} 2. Nf3 {[%clk 0:02:58]}  d6 {[%clk 0:01:40]} 3. Bf4 {[%clk 0:02:58]}  g6 {[%clk 0:01:38]} 4. h3 {[%clk 0:02:58]}  Bg7 {[%clk 0:01:36]} 5. e3 {[%clk 0:02:59]}  O-O {[%clk 0:01:35]} 6. c3 {[%clk 0:02:59]}  Nbd7 {[%clk 0:01:35]} 7. Be2 {[%clk 0:03:00]}  b6 {[%clk 0:01:29]} 8. O-O {[%clk 0:03:00]}  Bb7 {[%clk 0:01:29]} 9. Bh2 {[%clk 0:03:01]}  Rb8 {[%clk 0:01:29]} 10. Nbd2 {[%clk 0:03:01]}  c5 {[%clk 0:01:26]} 11. Rc1 {[%clk 0:02:59]}  Re8 {[%clk 0:01:11]} 12. Re1 {[%clk 0:02:58]}  h6 {[%clk 0:01:06]} 13. b4 {[%clk 0:02:56]}  Kh7 {[%clk 0:01:05]} 14. Nb3 {[%clk 0:02:55]}  e5 {[%clk 0:00:57]} 15. Rf1 {[%clk 0:02:47]}  Re7 {[%clk 0:00:31]} 16. Re1 {[%clk 0:02:37]}  Qe8 {[%clk 0:00:30]} 17. Rb1 {[%clk 0:02:31]}  Be4 {[%clk 0:00:21]} 18. Rc1 {[%clk 0:02:30]}  Bb7 {[%clk 0:00:13]} 19. a4 {[%clk 0:02:25]}  Ne4 {[%clk 0:00:00]} 20. a5 {[%clk 0:02:25]} 1-0


[Site "https://www.chess.com"]

[Event "Titled Tuesday Blitz August 15 Early 2023"]
[White "Begunov, Konstantin"]
[Black "Skiadopoulos, Nikolaos"]
[WhiteFideId "4118510"]
[BlackFideId "4200772"]
[WhiteElo "2431"]
[BlackElo "1881"]
[Result "1-0"]
[Round "4"]
[TimeControl "180+1"]
[Date "2023.08.15"]
[WhiteClock "0:00:41"]
[BlackClock "0:00:00"]
[Board "199"]

1. d4 {[%clk 0:03:00]}  Nf6 {[%clk 0:02:59]} 2. c4 {[%clk 0:03:01]}  c5 {[%clk 0:02:59]} 3. Nf3 {[%clk 0:03:01]}  g6 {[%clk 0:02:58]} 4. Nc3 {[%clk 0:03:01]}  Bg7 {[%clk 0:02:58]} 5. g3 {[%clk 0:03:01]}  O-O {[%clk 0:02:57]} 6. Bg2 {[%clk 0:03:01]}  cxd4 {[%clk 0:02:56]} 7. Nxd4 {[%clk 0:03:02]}  d6 {[%clk 0:02:56]} 8. O-O {[%clk 0:03:02]}  Qa5 {[%clk 0:02:55]} 9. e4 {[%clk 0:02:41]}  Bg4 {[%clk 0:02:50]} 10. f3 {[%clk 0:02:38]}  Bd7 {[%clk 0:02:49]} 11. Be3 {[%clk 0:02:38]}  Nc6 {[%clk 0:02:42]} 12. Qd2 {[%clk 0:02:38]}  Nxd4 {[%clk 0:02:40]} 13. Bxd4 {[%clk 0:02:38]}  Qh5 {[%clk 0:02:32]} 14. Rac1 {[%clk 0:02:19]}  Bh3 {[%clk 0:02:27]} 15. Bxh3 {[%clk 0:02:07]}  Qxh3 {[%clk 0:02:26]} 16. Nd5 {[%clk 0:02:08]}  Nxd5 {[%clk 0:02:25]} 17. cxd5 {[%clk 0:02:08]}  Qd7 {[%clk 0:02:07]} 18. Rc4 {[%clk 0:01:44]}  Bxd4+ {[%clk 0:01:59]} 19. Qxd4 {[%clk 0:01:44]}  b5 {[%clk 0:01:56]} 20. Rc6 {[%clk 0:01:43]}  Rac8 {[%clk 0:01:31]} 21. Rfc1 {[%clk 0:01:43]}  Rxc6 {[%clk 0:01:31]} 22. dxc6 {[%clk 0:01:38]}  Qc7 {[%clk 0:01:30]} 23. Kg2 {[%clk 0:01:27]}  Rc8 {[%clk 0:01:23]} 24. h4 {[%clk 0:01:21]}  Qb6 {[%clk 0:01:18]} 25. Qxb6 {[%clk 0:00:58]}  axb6 {[%clk 0:01:17]} 26. c7 {[%clk 0:00:59]}  Kf8 {[%clk 0:01:16]} 27. Rc6 {[%clk 0:00:59]}  Ke8 {[%clk 0:01:16]} 28. Rxb6 {[%clk 0:00:59]}  Rxc7 {[%clk 0:01:16]} 29. Rxb5 {[%clk 0:01:00]}  Rc2+ {[%clk 0:01:14]} 30. Kh3 {[%clk 0:01:00]}  h5 {[%clk 0:01:13]} 31. a4 {[%clk 0:00:59]}  Rf2 {[%clk 0:01:12]} 32. a5 {[%clk 0:00:58]}  Kd7 {[%clk 0:00:54]} 33. a6 {[%clk 0:00:58]}  Rf1 {[%clk 0:00:51]} 34. Rb7+ {[%clk 0:00:45]}  Ke6 {[%clk 0:00:47]} 35. a7 {[%clk 0:00:43]}  Ra1 {[%clk 0:00:46]} 36. b4 {[%clk 0:00:41]}  d5 {[%clk 0:00:46]} 37. exd5+ {[%clk 0:00:40]}  Kxd5 {[%clk 0:00:00]} 38. b5 {[%clk 0:00:41]} 1-0


[Site "https://www.chess.com"]